Service area,Service sub division,TVBC Service,Expense type,Detailed expense type,TVBC account code,Date Paid,Transaction Reference,Nett Value,Supplier Name
"Highways, Roads & Transport",Parking Services,Plan Pol & Transport,Premises related Expenditure,Energy Costs,Electricity,19/01/2017,198265,-5256.29,Hampshire County Council
Planning & Development,Community Development,Community and Leisure ,Supplies & Services,Grants & Subscriptions,Grants,24/01/2017,204125,-1000,Junior Park Run
"Highways, Roads & Transport",Parking Services,Plan Pol & Transport,Supplies & Services,Services,Professional Fees,12/01/2017,200328,-733.82,Keyline Chartered Security Ltd
Central Services to the Public,Management & Support Services,IT,Supplies & Services,Services,Training Courses,13/01/2017,198264,-691.9,Qa Limited
Planning & Development,Community Development,Community and Leisure ,Supplies & Services,Grants & Subscriptions,Grants,05/01/2017,201065,500,The Fairground Hall
Environmental & Regulatory,Waste management,Environmental,Employees,Indirect Employee Expenses,Agency Staff - Waged Posts,19/01/2017,202522,418.36,365 Supply Ltd
Environmental & Regulatory,Waste management,Environmental,Supplies & Services,"Equipment, Furniture & Materials",Purchase Equip + Materials,19/01/2017,201362,418.56,Daniels Healthcare Ltd
Environmental & Regulatory,Waste management,Environmental,Supplies & Services,Services,Professional Advice,12/01/2017,201032,421.5,Dc Commercial Solicitors
Environmental & Regulatory,Street Cleansing (not chargeable to Highways),Environmental,Employees,Indirect Employee Expenses,Agency Staff - Waged Posts,19/01/2017,202850,424.36,365 Supply Ltd
Environmental & Regulatory,Waste management,Environmental,Supplies & Services,Services,Training Courses,12/01/2017,201037,445,By-Pass Driver Training
Central Services to the Public,Management & Support Services,Estates and Economic Development ,Employees,Indirect Employee Expenses,Staff Professional Fees,12/01/2017,201568,512,Personal data - Data Protection Act 1998
Central Services to the Public,Management & Support Services,Environmental,Supplies & Services,"Printing, Stationery & General Office Expenses",Photocopying Costs,26/01/2017,203022,432.99,Ricoh Uk Ltd
Environmental & Regulatory,Waste management,Environmental,Transport Related Expenditure,Direct Transport Costs,Repair Materials,12/01/2017,201355,433.44,Terberg Matec Uk Limited
Central Services to the Public,Management & Support Services,Estates and Economic Development ,Supplies & Services,"Printing, Stationery & General Office Expenses",Photocopying Costs,26/01/2017,204294,433.8,Ricoh Uk Ltd
Central Services to the Public,Management & Support Services,Estates and Economic Development ,Third Party Payments,Other Establishments,Private Contractors,19/01/2017,202389,447.72,Andover Glass Works Ltd
Cultural & Related,Culture & Heritage,Estates and Economic Development ,Supplies & Services,Miscellaneous Expenses,Waste Collection,12/01/2017,201294,132.59,Suez Recycling And Recovery Uk Ltd
Central Services to the Public,Management & Support Services,Estates and Economic Development ,Supplies & Services,Miscellaneous Expenses,Waste Collection,12/01/2017,201294,315.6,Suez Recycling And Recovery Uk Ltd
Central Services to the Public,Elections,Legal & Democratic,Supplies & Services,Communications & Computing,Computer Software,26/01/2017,204118,449.44,Electoral Reform Services
Environmental & Regulatory,Waste management,Environmental,Employees,Indirect Employee Expenses,Agency Staff - Waged Posts,12/01/2017,201533,449.9,365 Supply Ltd
External Trading Accounts,Business Parks,Estates and Economic Development ,Premises related Expenditure,Repairs Alterations & Maintenance of Buildings,Estates premises costs - AMP,05/01/2017,200943,450,Alarms & Electrical (Devizes) Ltd
Central Services to the Public,Management & Support Services,Estates and Economic Development ,Third Party Payments,Other Establishments,Private Contractors,19/01/2017,202773,450,Clearwater 2010 Ltd
Environmental & Regulatory,Street Cleansing (not chargeable to Highways),Environmental,Transport Related Expenditure,Contract Hire and Operating Leases,Vehicles-Hired\Leased,04/01/2017,200382,450,Go Plant Ltd
Central Services to the Public,Management & Support Services,Legal & Democratic,Supplies & Services,Services,Professional Advice,12/01/2017,201031,453,Dc Commercial Solicitors
Environmental & Regulatory,Street Cleansing (not chargeable to Highways),Environmental,Supplies & Services,"Equipment, Furniture & Materials",Purchase Equip + Materials,12/01/2017,200937,455,Sweeperhire
Environmental & Regulatory,Street Cleansing (not chargeable to Highways),Environmental,Employees,Indirect Employee Expenses,Agency Staff - Waged Posts,19/01/2017,202849,455.4,365 Supply Ltd
Central Services to the Public,Management & Support Services,Community and Leisure ,Supplies & Services,Miscellaneous Expenses,Promotions / Special Events,19/01/2017,203065,550,Angell Concepts & Consulting
Cultural & Related,Culture & Heritage,Community and Leisure ,Premises related Expenditure,Cleaning and domestic supplies,Cleaning Materials-Purchases,12/01/2017,201230,31.02,Brake Bros Ltd
Cultural & Related,Culture & Heritage,Community and Leisure ,Supplies & Services,Catering,Caf�/ bar consumables,12/01/2017,201230,2.72,Brake Bros Ltd
Cultural & Related,Culture & Heritage,Community and Leisure ,Supplies & Services,Catering,Non-Contract Catering,12/01/2017,201230,439.09,Brake Bros Ltd
Cultural & Related,Culture & Heritage,Community and Leisure ,Supplies & Services,"Printing, Stationery & General Office Expenses",Postage Costs,12/01/2017,201228,471.59,Royal Mail
Central Services to the Public,Management & Support Services,Legal & Democratic,Supplies & Services,"Printing, Stationery & General Office Expenses",Photocopying Costs,26/01/2017,204109,472.39,Ricoh Uk Ltd
External Trading Accounts,Business Parks,Estates and Economic Development ,Premises related Expenditure,Grounds Maintenance Costs,Grounds Maintenance Contracts,26/01/2017,203091,473.19,Landmarks Sustainability Ltd
Central Services to the Public,Management & Support Services,Environmental,Transport Related Expenditure,Direct Transport Costs,External Garages,26/01/2017,204280,157.5,Andover Fork Truck Services Ltd
Central Services to the Public,Management & Support Services,Environmental,Transport Related Expenditure,Direct Transport Costs,Repair Materials,26/01/2017,204280,222.68,Andover Fork Truck Services Ltd
Central Services to the Public,Management & Support Services,Environmental,Transport Related Expenditure,Direct Transport Costs,Tyres,26/01/2017,204280,100,Andover Fork Truck Services Ltd
Environmental & Regulatory,Waste management,Environmental,Transport Related Expenditure,Direct Transport Costs,Repair Materials,26/01/2017,202968,481.23,Dennis Eagle Ltd
Cultural & Related,Recreation & Sport,Community and Leisure ,Premises related Expenditure,Repairs Alterations & Maintenance of Buildings,Planned Maintenance - Non Est,19/01/2017,202390,483,Culligan (Uk) Ltd
Cultural & Related,Tourism,Estates and Economic Development ,Supplies & Services,Miscellaneous Expenses,Promotions / Special Events,19/01/2017,202527,485,Tourism South East
Planning & Development,Economic Development,Estates and Economic Development ,Supplies & Services,Grants & Subscriptions,Subscriptions,19/01/2017,201545,495,Atcm
Central Services to the Public,Management & Support Services,IT,Employees,Indirect Employee Expenses,Temporary Staff,26/01/2017,201452,495,Gcs Recruitment Services
Cultural & Related,Open Spaces,Environmental,Transport Related Expenditure,Direct Transport Costs,Repair Materials,05/01/2017,200519,500.4,Foray Motor Group Ltd
Cultural & Related,Open Spaces,Environmental,Supplies & Services,Communications & Computing,Mobile Telephone Charges,26/01/2017,203063,125.73,Vodafone Limited
Environmental & Regulatory,Street Cleansing (not chargeable to Highways),Environmental,Supplies & Services,Communications & Computing,Mobile Telephone Charges,26/01/2017,203063,150.99,Vodafone Limited
Environmental & Regulatory,Waste management,Environmental,Supplies & Services,Communications & Computing,Mobile Telephone Charges,26/01/2017,203063,160.2,Vodafone Limited
Central Services to the Public,Management & Support Services,Environmental,Supplies & Services,Communications & Computing,Mobile Telephone Charges,26/01/2017,203063,25.97,Vodafone Limited
Central Services to the Public,Management & Support Services,Environmental,Supplies & Services,Communications & Computing,Mobile Telephone Charges,26/01/2017,203063,47.19,Vodafone Limited
Central Services to the Public,Local Tax Collection,Revenues,Supplies & Services,Communications & Computing,Software Maintenance,12/01/2017,201035,204.7,Northgate Public Services Uk Ltd
Housing Services,Housing Benefits ,Revenues,Supplies & Services,Communications & Computing,Software Maintenance,12/01/2017,201035,127.95,Northgate Public Services Uk Ltd
Central Services to the Public,Local Tax Collection,Revenues,Supplies & Services,Communications & Computing,Software Maintenance,12/01/2017,201035,127.95,Northgate Public Services Uk Ltd
Central Services to the Public,Local Tax Collection,Revenues,Supplies & Services,Communications & Computing,Software Maintenance,12/01/2017,201035,51.17,Northgate Public Services Uk Ltd
External Trading Accounts,Business Parks,Estates and Economic Development ,Supplies & Services,Communications & Computing,Land Line Telephone Charges,12/01/2017,201225,28.14,Virgin Media Payments Ltd
Cultural & Related,Culture & Heritage,Estates and Economic Development ,Supplies & Services,Communications & Computing,Land Line Telephone Charges,12/01/2017,201225,39.96,Virgin Media Payments Ltd
Cultural & Related,Culture & Heritage,Estates and Economic Development ,Supplies & Services,Communications & Computing,Land Line Telephone Charges,12/01/2017,201225,39.8,Virgin Media Payments Ltd
Central Services to the Public,Management & Support Services,IT,Supplies & Services,Communications & Computing,Communication Links,12/01/2017,201225,26,Virgin Media Payments Ltd
Central Services to the Public,Management & Support Services,IT,Supplies & Services,Communications & Computing,Communication Links,12/01/2017,201225,67,Virgin Media Payments Ltd
Cultural & Related,Recreation & Sport,Community and Leisure ,Supplies & Services,Communications & Computing,Land Line Telephone Charges,12/01/2017,201225,26,Virgin Media Payments Ltd
Cultural & Related,Recreation & Sport,Community and Leisure ,Supplies & Services,Communications & Computing,Land Line Telephone Charges,12/01/2017,201225,13.16,Virgin Media Payments Ltd
Cultural & Related,Recreation & Sport,Community and Leisure ,Supplies & Services,Communications & Computing,Land Line Telephone Charges,12/01/2017,201225,13,Virgin Media Payments Ltd
Cultural & Related,Culture & Heritage,Community and Leisure ,Supplies & Services,Communications & Computing,Communication Links,12/01/2017,201225,74,Virgin Media Payments Ltd
"Highways, Roads & Transport",Parking Services,Plan Pol & Transport,Supplies & Services,Communications & Computing,Alarm Lines,12/01/2017,201225,37.01,Virgin Media Payments Ltd
Central Services to the Public,Management & Support Services,Environmental,Supplies & Services,Communications & Computing,Land Line Telephone Charges,12/01/2017,201225,66.82,Virgin Media Payments Ltd
Central Services to the Public,Emergency Planning,Corporate & Democratic,Supplies & Services,Communications & Computing,Land Line Telephone Charges,12/01/2017,201225,91,Virgin Media Payments Ltd
Central Services to the Public,Management & Support Services,Estates and Economic Development ,Third Party Payments,Other Establishments,Private Contractors,19/01/2017,203046,630,G D Leadwork
Central Services to the Public,Management & Support Services,Legal & Democratic,Employees,Indirect Employee Expenses,Agency Staff - Waged Posts,19/01/2017,201252,528.75,Venn Group Ltd
Environmental & Regulatory,Waste management,Environmental,Employees,Indirect Employee Expenses,Agency Staff - Waged Posts,26/01/2017,203920,535.84,365 Supply Ltd
Central Services to the Public,Management & Support Services,Legal & Democratic,Employees,Indirect Employee Expenses,Agency Staff - Waged Posts,05/01/2017,200919,540,Venn Group Ltd
External Trading Accounts,Business Parks,Estates and Economic Development ,Premises related Expenditure,Grounds Maintenance Costs,Grounds Maintenance Contracts,12/01/2017,201279,540,Gritit Ltd
Cultural & Related,Culture & Heritage,Community and Leisure ,Supplies & Services,Catering,Non-Contract Catering,05/01/2017,200388,540.92,Carlsberg Uk Ltd
Environmental & Regulatory,Street Cleansing (not chargeable to Highways),Environmental,Transport Related Expenditure,Contract Hire and Operating Leases,Vehicles-Hired\Leased,05/01/2017,200535,550,Trash Uk Limited
Environmental & Regulatory,Street Cleansing (not chargeable to Highways),Environmental,Transport Related Expenditure,Contract Hire and Operating Leases,Vehicles-Hired\Leased,05/01/2017,200536,550,Trash Uk Limited
Environmental & Regulatory,Waste management,Environmental,Transport Related Expenditure,Direct Transport Costs,Repair Materials,12/01/2017,201027,553.31,Dennis Eagle Ltd
External Trading Accounts,Business Parks,Estates and Economic Development ,Supplies & Services,Miscellaneous Expenses,Waste Collection,19/01/2017,203026,553.8,Basingstoke Skip Hire & Sthrn Waste Mgt Ltd
Cultural & Related,Open Spaces,Environmental,Supplies & Services,Miscellaneous Expenses,Waste Collection,12/01/2017,200772,560.32,Raymond Brown Minerals & Recycling Ltd
Central Services to the Public,Management & Support Services,Legal & Democratic,Employees,Indirect Employee Expenses,Agency Staff - Waged Posts,05/01/2017,200922,562.5,Venn Group Ltd
Central Services to the Public,Management & Support Services,Estates and Economic Development ,Third Party Payments,Private contractors,Main Contractor Costs,05/01/2017,201012,567.4,Correct Contract Services
Central Services to the Public,Management & Support Services,Environmental,Supplies & Services,"Equipment, Furniture & Materials",Maintenance Equip + Materials,05/01/2017,200541,575.74,Guaranteed Tool Company Ltd
Central Services to the Public,Local Tax Collection,Revenues,Supplies & Services,"Printing, Stationery & General Office Expenses",Postage Costs,12/01/2017,201257,24.96,Royal Mail
Central Services to the Public,Local Tax Collection,Revenues,Supplies & Services,"Printing, Stationery & General Office Expenses",Postage Costs,12/01/2017,201257,230.21,Royal Mail
Housing Services,Housing Benefits ,Revenues,Supplies & Services,"Printing, Stationery & General Office Expenses",Postage Costs,12/01/2017,201257,163.85,Royal Mail
Central Services to the Public,Local Tax Collection,Revenues,Supplies & Services,"Printing, Stationery & General Office Expenses",Postage Costs,12/01/2017,201257,163.84,Royal Mail
Central Services to the Public,Local Tax Collection,Revenues,Supplies & Services,Services,Professional Fees,26/01/2017,203083,75,Ross & Roberts
"Highways, Roads & Transport",Parking Services,Plan Pol & Transport,Supplies & Services,"Clothes, Uniforms & Laundry",Clothing + Uniforms,12/01/2017,200896,609.9,Keltic
Environmental & Regulatory,Street Cleansing (not chargeable to Highways),Environmental,Supplies & Services,"Equipment, Furniture & Materials",Purchase Equip + Materials,12/01/2017,200953,618,Jrb Enterpise Ltd
Central Services to the Public,Management & Support Services,Legal & Democratic,Employees,Indirect Employee Expenses,Agency Staff - Waged Posts,19/01/2017,201312,620,Venn Group Ltd
Environmental & Regulatory,Regulatory Services,Housing and Environmental Health ,Supplies & Services,Grants and subscriptions,Capital Grants,26/01/2017,204448,750,Kg Structures Ltd
Planning & Development,Economic Development,Estates and Economic Development ,Supplies & Services,Services,Training Courses,04/01/2017,200777,750,Mrt Castings Limited
Planning & Development,Economic Development,Estates and Economic Development ,Supplies & Services,Grants & Subscriptions,Grants,18/01/2017,202758,750,Vista Glaze Ltd
Planning & Development,Economic Development,Estates and Economic Development ,Supplies & Services,Grants & Subscriptions,Grants,18/01/2017,202763,750,Tranquil
Planning & Development,Economic Development,Estates and Economic Development ,Supplies & Services,Grants & Subscriptions,Grants,18/01/2017,202852,750,The Workshop Gallery
Planning & Development,Economic Development,Estates and Economic Development ,Supplies & Services,Grants & Subscriptions,Grants,18/01/2017,202853,750,Personal data - Data Protection Act 1998
Central Services to the Public,Management & Support Services,Revenues,Supplies & Services,Communications & Computing,Hardware Maintenance,19/01/2017,194792,630,Ncc Services Limited
Cultural & Related,Recreation & Sport,Community and Leisure ,Premises related Expenditure,Repairs Alterations & Maintenance of Buildings,General Repairs,12/01/2017,200899,630,Anton Office Supplies
External Trading Accounts,Economic Development,Estates and Economic Development ,Premises related Expenditure,Repairs Alterations & Maintenance of Buildings,Planned Maintenance - Non Est,26/01/2017,204274,288.64,Empire Industrial Doors Ltd
Cultural & Related,Culture & Heritage,Estates and Economic Development ,Premises related Expenditure,Repairs Alterations & Maintenance of Buildings,Planned Maintenance - Non Est,26/01/2017,204274,57.73,Empire Industrial Doors Ltd
Cultural & Related,Culture & Heritage,Estates and Economic Development ,Premises related Expenditure,Repairs Alterations & Maintenance of Buildings,Planned Maintenance - Non Est,26/01/2017,204274,57.72,Empire Industrial Doors Ltd
Central Services to the Public,Management & Support Services,Estates and Economic Development ,Premises related Expenditure,Repairs Alterations & Maintenance of Buildings,Planned Maintenance - Non Est,26/01/2017,204274,115.45,Empire Industrial Doors Ltd
Central Services to the Public,Management & Support Services,Estates and Economic Development ,Premises related Expenditure,Repairs Alterations & Maintenance of Buildings,Planned Maintenance - Non Est,26/01/2017,204274,57.73,Empire Industrial Doors Ltd
Cultural & Related,Culture & Heritage,Community and Leisure ,Premises related Expenditure,Repairs Alterations & Maintenance of Buildings,Planned Maintenance - Non Est,26/01/2017,204274,57.73,Empire Industrial Doors Ltd
Environmental & Regulatory,Regulatory Services,Housing and Environmental Health ,Supplies & Services,Grants and subscriptions,Capital Grants,05/01/2017,201066,763,Epw Construction
Environmental & Regulatory,Waste management,Environmental,Employees,Indirect Employee Expenses,Agency Staff - Waged Posts,19/01/2017,198693,640.5,Simple Recruitment Services Ltd
Central Services to the Public,Management & Support Services,Environmental,Transport Related Expenditure,Direct Transport Costs,Workshop Consumables,05/01/2017,200930,302.36,M D Services
Central Services to the Public,Management & Support Services,Environmental,Transport Related Expenditure,Direct Transport Costs,Repair Materials,05/01/2017,200930,26.2,M D Services
Central Services to the Public,Management & Support Services,Environmental,Supplies & Services,"Equipment, Furniture & Materials",Purchase Tools,05/01/2017,200930,312.56,M D Services
"Highways, Roads & Transport",Public Transport,Plan Pol & Transport,Third Party Payments,Transport Operators in Respect of Concessionary Fares,Voluntary Orgs Reimbursement,26/01/2017,204419,769.5,Romsey Good Neighbours
Environmental & Regulatory,Street Cleansing (not chargeable to Highways),Environmental,Supplies & Services,Miscellaneous Expenses,Waste Collection,12/01/2017,201474,642.4,Raymond Brown Minerals & Recycling Ltd
Central Services to the Public,Management & Support Services,Estates and Economic Development ,Supplies & Services,Grants & Subscriptions,Subscriptions,19/01/2017,201534,650,Rics
Cultural & Related,Culture & Heritage,Estates and Economic Development ,Premises related Expenditure,Repairs Alterations & Maintenance of Buildings,Estates premises costs - AMP,19/01/2017,202781,650,Protec Roofing Southern Ltd
Central Services to the Public,Management & Support Services,IT,Supplies & Services,Communications & Computing,Computer Software,19/01/2017,202525,650,Web Labs Ltd
Central Services to the Public,Management & Support Services,Community and Leisure ,Supplies & Services,"Equipment, Furniture & Materials",Purchase Equip + Materials,26/01/2017,204411,800,Romsey District Neighbourhood Watch Assoc
Cultural & Related,Open Spaces,Environmental,Supplies & Services,"Equipment, Furniture & Materials",Purchase Equip + Materials,12/01/2017,200528,688.32,Atf Supplies Nationwide Ltd
Central Services to the Public,Management & Support Services,IT,Supplies & Services,Services,Training Courses,13/01/2017,197650,691.9,Qa Limited
Cultural & Related,Culture & Heritage,Community and Leisure ,Supplies & Services,Miscellaneous Expenses,Booking Of Acts,12/01/2017,201542,700,Comedy Club $ Kids Ltd
Central Services to the Public,Local Tax Collection,Revenues,Supplies & Services,"Printing, Stationery & General Office Expenses",External Printing,05/01/2017,200951,169.38,Hound Envelopes Limited
Central Services to the Public,Local Tax Collection,Revenues,Supplies & Services,"Printing, Stationery & General Office Expenses",External Printing,05/01/2017,200951,260.3,Hound Envelopes Limited
Housing Services,Housing Benefits ,Revenues,Supplies & Services,"Printing, Stationery & General Office Expenses",External Printing,05/01/2017,200951,273.6,Hound Envelopes Limited
Environmental & Regulatory,"Cemetery, Cremation and Mortuary Services",Community and Leisure ,Premises related Expenditure,Grounds Maintenance Costs,Gm - Additional Works,05/01/2017,201049,846.3,St Peters Church
Housing Services,Housing Benefits ,Revenues,Supplies & Services,Communications & Computing,Software Maintenance,12/01/2017,201034,367.57,Northgate Public Services Uk Ltd
Central Services to the Public,Local Tax Collection,Revenues,Supplies & Services,Communications & Computing,Software Maintenance,12/01/2017,201034,367.57,Northgate Public Services Uk Ltd
Central Services to the Public,Management & Support Services,IT,Supplies & Services,"Equipment, Furniture & Materials",Maintenance Equip + Materials,19/01/2017,203039,740.62,Quadrant Security Group Ltd
Central Services,Corporate & Democratic Core,Corporate & Democratic,Supplies & Services,Services,Professional Advice,19/01/2017,201526,750,Dc Commercial Solicitors
Cultural & Related,Open Spaces,Environmental,Transport Related Expenditure,Direct Transport Costs,Repair Materials,05/01/2017,200786,756.47,T H White Ltd
Environmental & Regulatory,Waste management,Environmental,Transport Related Expenditure,Direct Transport Costs,Repair Materials,12/01/2017,201222,761.56,Dennis Eagle Ltd
Central Services to the Public,Management & Support Services,Revenues,Supplies & Services,"Equipment, Furniture & Materials",Maintenance Equip + Materials,05/01/2017,197776,785.7,Pitney Bowes Finance Ltd
Central Services to the Public,Management & Support Services,Legal & Democratic,Supplies & Services,Communications & Computing,Computer Software,05/01/2017,197809,792.8,Iken Business Ltd
Cultural & Related,Recreation & Sport,Community and Leisure ,Supplies & Services,Services,Professional Fees,26/01/2017,204312,794,Blake Morgan Llp
Environmental & Regulatory,Regulatory Services,Legal & Democratic,Supplies & Services,Services,Training Courses,05/01/2017,200399,398,Local Government Association
Central Services,Corporate & Democratic Core,Corporate & Democratic,Supplies & Services,Services,Training Courses,05/01/2017,200399,398,Local Government Association
"Highways, Roads & Transport",Parking Services,Plan Pol & Transport,Supplies & Services,Services,Professional Fees,26/01/2017,203081,955.6,Patrol
Central Services to the Public,Management & Support Services,Environmental,Transport Related Expenditure,Direct Transport Costs,Oils,05/01/2017,200530,798.6,Fuchs Lubricants (Uk) Plc
Environmental & Regulatory,Regulatory Services,Housing and Environmental Health ,Supplies & Services,Miscellaneous Expenses,Miscellaneous Capital Expenses,12/01/2017,201274,960,Access Independent Ltd
Central Services to the Public,Management & Support Services,IT,Supplies & Services,"Equipment, Furniture & Materials",Purchase Equipment For Hire,19/01/2017,202410,551.25,Xerox (Uk) Ltd
Central Services to the Public,Management & Support Services,IT,Supplies & Services,"Equipment, Furniture & Materials",Purchase Equip + Materials,19/01/2017,202410,261.11,Xerox (Uk) Ltd
Central Services to the Public,Management & Support Services,Finance,Supplies & Services,"Printing, Stationery & General Office Expenses",Postage Costs,05/01/2017,200781,814.17,Whistl Uk Ltd
Central Services to the Public,Management & Support Services,IT,Employees,Indirect Employee Expenses,Temporary Staff,05/01/2017,200774,825,Gcs Recruitment Services
Central Services to the Public,Management & Support Services,IT,Employees,Indirect Employee Expenses,Temporary Staff,05/01/2017,200775,825,Gcs Recruitment Services
Planning & Development,Community Development,Community and Leisure ,Supplies & Services,Grants & Subscriptions,Grants,24/01/2017,200326,1000,Junior Park Run
Environmental & Regulatory,Street Cleansing (not chargeable to Highways),Environmental,Employees,Indirect Employee Expenses,Agency Staff - Waged Posts,12/01/2017,201287,843.53,365 Supply Ltd
"Highways, Roads & Transport",Parking Services,Plan Pol & Transport,Supplies & Services,"Equipment, Furniture & Materials",Purchase Equip + Materials,26/01/2017,203932,845.94,Cale Briparc Ltd
"Highways, Roads & Transport",Public Transport,Plan Pol & Transport,Third Party Payments,Transport Operators in Respect of Concessionary Fares,Voluntary Orgs Reimbursement,12/01/2017,201566,1016,Thorngate Village Care Group
Central Services to the Public,Management & Support Services,Estates and Economic Development ,Supplies & Services,Communications & Computing,Telephone Tracking System,19/01/2017,202399,60,Ctrack Uk Limited
Environmental & Regulatory,Regulatory Services,Estates and Economic Development ,Supplies & Services,Communications & Computing,Telephone Tracking System,19/01/2017,202399,20,Ctrack Uk Limited
Cultural & Related,Open Spaces,Environmental,Supplies & Services,Communications & Computing,Telephone Tracking System,19/01/2017,202399,280,Ctrack Uk Limited
Environmental & Regulatory,Street Cleansing (not chargeable to Highways),Environmental,Supplies & Services,Communications & Computing,Telephone Tracking System,19/01/2017,202399,230,Ctrack Uk Limited
Environmental & Regulatory,Waste management,Environmental,Supplies & Services,Communications & Computing,Telephone Tracking System,19/01/2017,202399,210,Ctrack Uk Limited
Environmental & Regulatory,Waste management,Environmental,Supplies & Services,Communications & Computing,Telephone Tracking System,19/01/2017,202399,20,Ctrack Uk Limited
Central Services to the Public,Management & Support Services,Environmental,Supplies & Services,Communications & Computing,Telephone Tracking System,19/01/2017,202399,30,Ctrack Uk Limited
Environmental & Regulatory,Regulatory Services,Housing and Environmental Health ,Supplies & Services,Miscellaneous Expenses,Kennel fees,19/01/2017,202536,860,Anton Vets Ltd
Cultural & Related,Open Spaces,Plan Pol & Transport,Third Party Payments,Private contractors,Main Contractor Costs,05/01/2017,200508,875,Caroway Building & Civil Engineering
Environmental & Regulatory,Waste management,Environmental,Transport Related Expenditure,Direct Transport Costs,Repair Materials,26/01/2017,203078,23.56,Dennis Eagle Ltd
Central Services to the Public,Management & Support Services,Environmental,Transport Related Expenditure,Direct Transport Costs,Repair Materials,26/01/2017,203078,856.99,Dennis Eagle Ltd
Central Services to the Public,Management & Support Services,Legal & Democratic,Employees,Direct Employee Expenses,Basic Salaries,12/01/2017,201258,900,Cognize Consultancy Limited
"Highways, Roads & Transport",Public Transport,Plan Pol & Transport,Third Party Payments,Transport Operators in Respect of Concessionary Fares,Voluntary Orgs Reimbursement,26/01/2017,204420,1089.5,Romsey Good Neighbours
Environmental & Regulatory,Street Cleansing (not chargeable to Highways),Environmental,Employees,Indirect Employee Expenses,Agency Staff - Waged Posts,05/01/2017,200939,921.15,365 Supply Ltd
"Highways, Roads & Transport",Public Transport,Plan Pol & Transport,Third Party Payments,Transport Operators in Respect of Concessionary Fares,Voluntary Orgs Reimbursement,12/01/2017,201571,1110.5,Romsey Good Neighbours
Cultural & Related,Culture & Heritage,Community and Leisure ,Supplies & Services,Miscellaneous Expenses,Booking Of Acts,26/01/2017,204284,928,Bound & Gagged Comedy Ltd
Cultural & Related,Open Spaces,Community and Leisure ,Premises related Expenditure,Grounds Maintenance Costs,Gm - Additional Works,19/01/2017,202383,929.25,Hillier Nurseries Limited
Environmental & Regulatory,Regulatory Services,Housing and Environmental Health ,Supplies & Services,Miscellaneous Expenses,Miscellaneous Capital Expenses,12/01/2017,201273,1120,Access Independent Ltd
Central Services,Corporate & Democratic Core,Corporate & Democratic,Supplies & Services,Communications & Computing,Land Line Telephone Charges,12/01/2017,201471,936.77,Invicta Lifeline Ltd
Cultural & Related,Culture & Heritage,Community and Leisure ,Supplies & Services,Miscellaneous Expenses,Booking Of Acts,05/01/2017,200505,972,Avalon Management Group Ltd
Environmental & Regulatory,Waste management,Environmental,Supplies & Services,"Printing, Stationery & General Office Expenses",External Printing,19/01/2017,202426,975,Vernham Labels Ltd
Cultural & Related,Recreation & Sport,Estates and Economic Development ,Premises related Expenditure,Energy Costs,Gas,05/01/2017,200581,976.45,Total Gas & Power Ltd
Central Services to the Public,Management & Support Services,Legal & Democratic,Employees,Indirect Employee Expenses,Agency Staff - Waged Posts,26/01/2017,204114,990,Venn Group Ltd
Central Services to the Public,Management & Support Services,Legal & Democratic,Supplies & Services,Miscellaneous Expenses,Medical Fees,19/01/2017,201561,1200,Sarum Occupational Health Ltd
Central Services to the Public,Local Tax Collection,Revenues,Supplies & Services,Communications & Computing,Software Maintenance,12/01/2017,200965,1028.5,Northgate Public Services Uk Ltd
Environmental & Regulatory,Regulatory Services,Housing and Environmental Health ,Supplies & Services,Miscellaneous Expenses,Miscellaneous Capital Expenses,12/01/2017,201272,1280,Access Independent Ltd
"Highways, Roads & Transport",Public Transport,Plan Pol & Transport,Third Party Payments,Transport Operators in Respect of Concessionary Fares,Voluntary Orgs Reimbursement,19/01/2017,202417,1284,Andover Neighbourcare
Central Services to the Public,Management & Support Services,Legal & Democratic,Employees,Indirect Employee Expenses,Agency Staff - Waged Posts,05/01/2017,200923,1070,Venn Group Ltd
Cultural & Related,Culture & Heritage,Estates and Economic Development ,Premises related Expenditure,Repairs Alterations & Maintenance of Buildings,Building Maint - Non Estates,26/01/2017,203028,1079.19,Basingstoke Fire Protection Ltd
Central Services to the Public,Management & Support Services,Finance,Supplies & Services,"Printing, Stationery & General Office Expenses",Postage Costs,12/01/2017,201025,1087.84,Whistl Uk Ltd
Central Services to the Public,Local Tax Collection,Revenues,Supplies & Services,Services,Professional Fees,12/01/2017,201045,90,Ross & Roberts
Central Services to the Public,Management & Support Services,Legal & Democratic,Supplies & Services,Miscellaneous Expenses,Advertising,19/01/2017,202360,1122,Hampshire Media Limited
Environmental & Regulatory,Regulatory Services,Housing and Environmental Health ,Supplies & Services,Grants and subscriptions,Capital Grants,12/01/2017,201548,1358.6,Community First New Forest
Planning & Development,Development Control,Planning & Building,Supplies & Services,"Printing, Stationery & General Office Expenses",Stationery,12/01/2017,201242,1042.09,Banner Group Ltd
Planning & Development,Development Control,Planning & Building,Supplies & Services,"Printing, Stationery & General Office Expenses",Print Consumables,12/01/2017,201242,91.34,Banner Group Ltd
Central Services to the Public,Management & Support Services,Environmental,Supplies & Services,Services,Training Courses,05/01/2017,200521,1165,By-Pass Driver Training
Cultural & Related,Recreation & Sport,Community and Leisure ,Premises related Expenditure,Repairs Alterations & Maintenance of Buildings,General Repairs,26/01/2017,203998,1137,Personal data - Data Protection Act 1998
Central Services to the Public,Elections,Legal & Democratic,Supplies & Services,"Printing, Stationery & General Office Expenses",External Printing,12/01/2017,201307,1147.32,Financial Data Management Plc
Cultural & Related,Recreation & Sport,Community and Leisure ,Premises related Expenditure,Grounds Maintenance Costs,Gm - Additional Works,26/01/2017,200904,1150,Purbeck Civil Engineering Limited
Planning & Development,Development Control,Planning & Building,Third Party Payments,Commuted Sum,s106 Developer contributions,26/01/2017,204409,1422.03,Personal data - Data Protection Act 1998
Central Services,Corporate & Democratic Core,Corporate & Democratic,Supplies & Services,Communications & Computing,Software Maintenance,12/01/2017,201520,1200,Covalent Software Ltd
Environmental & Regulatory,Waste management,Environmental,Supplies & Services,"Printing, Stationery & General Office Expenses",External Printing,19/01/2017,203038,1210,Bulpitt Print Ltd
Central Services to the Public,Elections,Legal & Democratic,Supplies & Services,"Printing, Stationery & General Office Expenses",Postage Costs,19/01/2017,203066,1226.28,Financial Data Management Plc
Central Services to the Public,Management & Support Services,Finance,Supplies & Services,"Printing, Stationery & General Office Expenses",Written Media,12/01/2017,201544,1490,Cipfa Business Limited
Cultural & Related,Culture & Heritage,Community and Leisure ,Supplies & Services,Miscellaneous Expenses,Booking Of Acts,26/01/2017,204296,1250,London Artist Management
Planning & Development,Planning Policy,Plan Pol & Transport,Supplies & Services,Grants & Subscriptions,Grants,19/01/2017,203042,1500,Kings Somborne Parish Council
Planning & Development,Planning Policy,Plan Pol & Transport,Supplies & Services,Grants & Subscriptions,Grants,19/01/2017,198766,1543.45,Hampshire County Council
Planning & Development,Planning Policy,Plan Pol & Transport,Supplies & Services,Grants & Subscriptions,Grants,19/01/2017,200962,1543.45,Hampshire County Council
"Highways, Roads & Transport",Public Transport,Plan Pol & Transport,Third Party Payments,Transport Operators in Respect of Concessionary Fares,Voluntary Orgs Reimbursement,05/01/2017,200928,1570.8,Andover Neighbourcare
"Highways, Roads & Transport",Public Transport,Plan Pol & Transport,Third Party Payments,Transport Operators in Respect of Concessionary Fares,Voluntary Orgs Reimbursement,12/01/2017,201237,1575.9,Andover Neighbourcare
Central Services to the Public,Management & Support Services,Legal & Democratic,Employees,Direct Employee Expenses,Basic Salaries,05/01/2017,199636,1350,Cognize Consultancy Limited
Central Services to the Public,Management & Support Services,Legal & Democratic,Employees,Direct Employee Expenses,Basic Salaries,19/01/2017,202352,1350,Cognize Consultancy Limited
Central Services to the Public,Management & Support Services,Legal & Democratic,Employees,Direct Employee Expenses,Basic Salaries,26/01/2017,204283,1350,Cognize Consultancy Limited
Cultural & Related,Recreation & Sport,Community and Leisure ,Premises related Expenditure,Grounds Maintenance Costs,Gm - Additional Works,26/01/2017,203914,1350,Fabtech Engineering Lted
Environmental & Regulatory,Regulatory Services,Estates and Economic Development ,Premises related Expenditure,Water Services,Water And Sewerage Charges,26/01/2017,204113,1634.42,Southern Water
Central Services to the Public,Management & Support Services,Estates and Economic Development ,Third Party Payments,Other Establishments,Contract Catering,19/01/2017,202537,1368.5,Edwards And Ward Ltd
Central Services to the Public,Management & Support Services,IT,Supplies & Services,"Equipment, Furniture & Materials",Purchase Equip + Materials,19/01/2017,201524,1374.65,Xerox (Uk) Ltd
Cultural & Related,Culture & Heritage,Community and Leisure ,Supplies & Services,Miscellaneous Expenses,Booking Of Acts,12/01/2017,201475,1384.66,N S Productions
Central Services to the Public,Local Tax Collection,Revenues,Supplies & Services,Miscellaneous Expenses,All Pay Fees,12/01/2017,201359,1388.81,Allpay Limited
Central Services to the Public,Management & Support Services,Housing and Environmental Health ,Supplies & Services,Services,Training Courses,26/01/2017,204286,1389.64,Ferret Information Systems Ltd
Environmental & Regulatory,Waste management,Environmental,Transport Related Expenditure,Direct Transport Costs,Repair Materials,19/01/2017,202534,1452.9,Dennis Eagle Ltd
Central Services to the Public,Management & Support Services,Legal & Democratic,Employees,Direct Employee Expenses,Basic Salaries,19/01/2017,201494,1480,Cognize Consultancy Limited
Central Services to the Public,Management & Support Services,Estates and Economic Development ,Premises related Expenditure,Repairs Alterations & Maintenance of Buildings,Building Maint - Non Estates,05/01/2017,200778,1500,Hrg Tree Services Ltd
Cultural & Related,Culture & Heritage,Community and Leisure ,Supplies & Services,Miscellaneous Expenses,Booking Of Acts,12/01/2017,201546,1819.34,Groovy Gazza Productions
Central Services to the Public,Management & Support Services,Environmental,Transport Related Expenditure,Direct Transport Costs,Diesel,12/01/2017,201290,1520.96,Hall Fuels
Central Services to the Public,Management & Support Services,Environmental,Supplies & Services,Communications & Computing,Software Maintenance,12/01/2017,201347,1559.47,Triscan Systems Ltd
Cultural & Related,Culture & Heritage,Community and Leisure ,Supplies & Services,Miscellaneous Expenses,Booking Of Acts,12/01/2017,201537,1885.33,Ga Ga
Environmental & Regulatory,"Cemetery, Cremation and Mortuary Services",Community and Leisure ,Supplies & Services,Communications & Computing,Computer Hardware,19/01/2017,202993,1588,Edge It Systems Limited
Environmental & Regulatory,Street Cleansing (not chargeable to Highways),Environmental,Employees,Indirect Employee Expenses,Agency Staff - Waged Posts,05/01/2017,200776,1614.6,365 Supply Ltd
Central Services to the Public,Management & Support Services,Estates and Economic Development ,Third Party Payments,Other Establishments,Private Contractors,26/01/2017,204291,1694,New Forest Fencing Ltd
Environmental & Regulatory,Regulatory Services,Housing and Environmental Health ,Supplies & Services,Miscellaneous Expenses,Kennel fees,26/01/2017,203036,1707.48,Newbury Lodge Kennels
External Trading Accounts,Business Parks,Estates and Economic Development ,Premises related Expenditure,Repairs Alterations & Maintenance of Buildings,Planned Maintenance - Non Est,12/01/2017,201232,1757.64,Xylem Water Solutions Ltd
Central Services to the Public,Management & Support Services,Estates and Economic Development ,Third Party Payments,Other Establishments,Private Contractors,26/01/2017,204276,1780,Alarms & Electrical (Devizes) Ltd
Environmental & Regulatory,Regulatory Services,Housing and Environmental Health ,Supplies & Services,Grants and subscriptions,Capital Grants,12/01/2017,201550,2170.47,Acer Renovations Ltd
Environmental & Regulatory,Regulatory Services,Housing and Environmental Health ,Supplies & Services,Grants and subscriptions,Capital Grants,12/01/2017,201564,2183.4,Community First New Forest
Cultural & Related,Open Spaces,Environmental,Supplies & Services,Services,Training Courses,12/01/2017,201532,1844,Dale Valley Training
Cultural & Related,Open Spaces,Community and Leisure ,Premises related Expenditure,Grounds Maintenance Costs,Gm - Additional Works,26/01/2017,203931,1410,Personal data - Data Protection Act 1998
Cultural & Related,Open Spaces,Community and Leisure ,Premises related Expenditure,Repairs Alterations & Maintenance of Buildings,Estates premises costs - AMP,26/01/2017,203931,450,Personal data - Data Protection Act 1998
Cultural & Related,Culture & Heritage,Community and Leisure ,Supplies & Services,Catering,Caf�/ bar consumables,12/01/2017,201238,21.94,Carlsberg Uk Ltd
Cultural & Related,Culture & Heritage,Community and Leisure ,Supplies & Services,Catering,Non-Contract Catering,12/01/2017,201238,1852.29,Carlsberg Uk Ltd
Environmental & Regulatory,Regulatory Services,Housing and Environmental Health ,Supplies & Services,Grants and subscriptions,Capital Grants,12/01/2017,201565,2339.05,Castle Property Services
Central Services to the Public,Management & Support Services,Estates and Economic Development ,Supplies & Services,Communications & Computing,Software Maintenance,12/01/2017,201300,1950,Integrated Solutions Ltd
Central Services to the Public,Management & Support Services,Estates and Economic Development ,Supplies & Services,"Equipment, Furniture & Materials",Purchase Materials (Job Cost),05/01/2017,200900,1978,Cjs Portsmouth Ltd
External Trading Accounts,Business Parks,Estates and Economic Development ,Premises related Expenditure,Grounds Maintenance Costs,Grounds Maintenance Contracts,12/01/2017,201278,1989.96,Gritit Ltd
Central Services to the Public,Management & Support Services,IT,Supplies & Services,Communications & Computing,Computer Software,05/01/2017,200880,2081.5,Voodoo Technology Ltd
Cultural & Related,Culture & Heritage,Estates and Economic Development ,Premises related Expenditure,Repairs Alterations & Maintenance of Buildings,Estates premises costs - AMP,26/01/2017,204002,2500,G D Leadwork
Central Services to the Public,Management & Support Services,IT,Supplies & Services,Services,Project Consultancy - Systems,19/01/2017,202526,2093.6,Imperial Civil Enforcement Solutions
Cultural & Related,Culture & Heritage,Community and Leisure ,Supplies & Services,Miscellaneous Expenses,Booking Of Acts,12/01/2017,201301,2148.66,Artistes International Management
Planning & Development,Economic Development,Estates and Economic Development ,Supplies & Services,Services,Professional Fees,26/01/2017,203922,2310.66,Kada Research Ltd
Planning & Development,Development Control,Planning & Building,Employees,Indirect Employee Expenses,Temporary Staff,19/01/2017,202539,2679.6,T P Marsh
Environmental & Regulatory,Regulatory Services,Housing and Environmental Health ,Supplies & Services,Grants and subscriptions,Capital Grants,12/01/2017,201563,2717,Community First New Forest
Environmental & Regulatory,Regulatory Services,Housing and Environmental Health ,Supplies & Services,Grants and subscriptions,Capital Grants,12/01/2017,201549,2717.4,Community First New Forest
Cultural & Related,Recreation & Sport,Community and Leisure ,Premises related Expenditure,Repairs Alterations & Maintenance of Buildings,Estates premises costs - AMP,26/01/2017,204293,2279.3,Btu Installation & Maintenance Ltd
Planning & Development,Development Control,Planning & Building,Supplies & Services,Services,Project Consultancy - Policy,26/01/2017,203928,2287.02,Hampshire County Council
Planning & Development,Building Control,Planning & Building,Third Party Payments,Commuted Sum,s106 Developer contributions,12/01/2017,201554,2780,W Ashdown-Nursling & Rownhams Parish Council
Environmental & Regulatory,Waste management,Environmental,Transport Related Expenditure,Direct Transport Costs,Tyres,19/01/2017,201482,1284.53,Ats Euromaster Limited
Environmental & Regulatory,Waste management,Environmental,Transport Related Expenditure,Direct Transport Costs,Tyres,19/01/2017,201482,52.86,Ats Euromaster Limited
Central Services to the Public,Management & Support Services,Environmental,Transport Related Expenditure,Direct Transport Costs,Repair Materials,19/01/2017,201482,1016.07,Ats Euromaster Limited
Central Services to the Public,Management & Support Services,Legal & Democratic,Employees,Direct Employee Expenses,Basic Salaries,12/01/2017,200782,2380,Cognize Consultancy Limited
Central Services to the Public,Management & Support Services,Environmental,Transport Related Expenditure,Direct Transport Costs,Diesel,12/01/2017,201288,2383.25,Hall Fuels
Central Services to the Public,Management & Support Services,Environmental,Transport Related Expenditure,Direct Transport Costs,Diesel,04/01/2017,200538,2400.73,Hall Fuels
Environmental & Regulatory,Street Cleansing (not chargeable to Highways),Environmental,Supplies & Services,"Equipment, Furniture & Materials",Purchase Equip + Materials,19/01/2017,200884,2440,Imperial Polythene Products Ltd
Planning & Development,Economic Development,Estates and Economic Development ,Supplies & Services,Grants & Subscriptions,Grants,19/01/2017,202386,2443.8,Heartflood Ltd
Central Services to the Public,Management & Support Services,IT,Supplies & Services,Communications & Computing,Software Maintenance,19/01/2017,202941,2487.51,Vodafone Cable & Wireless Uk
Housing Services,Housing Benefits ,Revenues,Supplies & Services,Communications & Computing,Software Maintenance,26/01/2017,202528,2500,Victoria Solutions Limited
Central Services to the Public,Management & Support Services,Estates and Economic Development ,Supplies & Services,Services,Professional Fees,12/01/2017,201552,2561.35,Denton Ukmea Llp
Cultural & Related,Culture & Heritage,Community and Leisure ,Supplies & Services,Miscellaneous Expenses,Booking Of Acts,19/01/2017,203019,2653.13,Artistes International Management
Central Services to the Public,Management & Support Services,Environmental,Transport Related Expenditure,Direct Transport Costs,Diesel,26/01/2017,203034,2702.28,Hall Fuels
Cultural & Related,Culture & Heritage,Community and Leisure ,Supplies & Services,Miscellaneous Expenses,Booking Of Acts,12/01/2017,201557,2742,Rbm
Central Services to the Public,Management & Support Services,Environmental,Transport Related Expenditure,Direct Transport Costs,Diesel,19/01/2017,201540,2810.49,Hall Fuels
Central Services to the Public,Management & Support Services,Environmental,Transport Related Expenditure,Direct Transport Costs,Diesel,12/01/2017,201289,2880.6,Hall Fuels
Central Services to the Public,Local Land Charges,Legal & Democratic,Supplies & Services,Miscellaneous Expenses,Land Charges Fees,19/01/2017,202411,3505.5,Hampshire County Council
Cultural & Related,Open Spaces,Community and Leisure ,Premises related Expenditure,Grounds Maintenance Costs,Non Contract Tree Works,05/01/2017,199669,2970,Hrg Tree Services Ltd
Cultural & Related,Tourism,Estates and Economic Development ,Supplies & Services,Grants & Subscriptions,Contributions,26/01/2017,202999,3000,The Marketing Collective Ltd
Cultural & Related,Open Spaces,Community and Leisure ,Supplies & Services,"Equipment, Furniture & Materials",Purchase Equip + Materials,26/01/2017,203090,3017,Hillier Nurseries Limited
Central Services to the Public,Management & Support Services,IT,Supplies & Services,Services,Training Courses,26/01/2017,203009,3120,Purple Griffon Ltd
Environmental & Regulatory,Street Cleansing (not chargeable to Highways),Environmental,Supplies & Services,"Equipment, Furniture & Materials",Maintenance Equip + Materials,19/01/2017,202385,3144.8,Imperial Polythene Products Ltd
Central Services to the Public,Management & Support Services,Environmental,Transport Related Expenditure,Direct Transport Costs,Diesel,04/01/2017,200537,3183.28,Hall Fuels
Central Services to the Public,Management & Support Services,Plan Pol & Transport,Premises related Expenditure,Repairs Alterations & Maintenance of Buildings,General Repairs,26/01/2017,203918,3223,Signway Supplies (Datchet Ltd)
Environmental & Regulatory,Community Development,Community and Leisure ,Supplies & Services,Miscellaneous Expenses,Promotions / Special Events,19/01/2017,202394,4000,Andover Mind
Cultural & Related,Culture & Heritage,Community and Leisure ,Supplies & Services,Miscellaneous Expenses,Booking Of Acts,19/01/2017,202978,3400,Oddsocks Communications Ltd
Central Services to the Public,Management & Support Services,Environmental,Transport Related Expenditure,Direct Transport Costs,Diesel,12/01/2017,201040,3431.88,Hall Fuels
Central Services to the Public,Management & Support Services,Estates and Economic Development ,Supplies & Services,"Equipment, Furniture & Materials",Purchase Equip + Materials,12/01/2017,201473,3450,Ecomax Catering
Environmental & Regulatory,Regulatory Services,Housing and Environmental Health ,Supplies & Services,Grants and subscriptions,Capital Grants,19/01/2017,203050,4196.4,Prism Medical Uk
Environmental & Regulatory,Regulatory Services,Housing and Environmental Health ,Supplies & Services,Grants and subscriptions,Capital Grants,12/01/2017,201551,4225,Bentley Mobility Services
Central Services,Corporate & Democratic Core,Corporate & Democratic,Supplies & Services,Miscellaneous Expenses,Bank Charges,05/01/2017,199145,3562.5,Capita Treasury Solutions Ltd
Cultural & Related,Recreation & Sport,Community and Leisure ,Supplies & Services,Grants and subscriptions,Capital Grants,19/01/2017,203043,4284.64,Augusta Park Community Association
Cultural & Related,Open Spaces,Community and Leisure ,Premises related Expenditure,Grounds Maintenance Costs,Gm - Additional Works,19/01/2017,202645,225,Personal data - Data Protection Act 1998
Cultural & Related,Open Spaces,Community and Leisure ,Premises related Expenditure,Repairs Alterations & Maintenance of Buildings,Estates premises costs - AMP,19/01/2017,202645,3369,Personal data - Data Protection Act 1998
Cultural & Related,Recreation & Sport,Community and Leisure ,Premises related Expenditure,Repairs Alterations & Maintenance of Buildings,Estates premises costs - AMP,12/01/2017,200964,3620,Gripdeck Uk Llp
Central Services to the Public,Management & Support Services,Finance,Supplies & Services,"Printing, Stationery & General Office Expenses",Postage Costs,26/01/2017,204298,4363.34,Pitney Bowes Limited
Central Services to the Public,Management & Support Services,Environmental,Transport Related Expenditure,Direct Transport Costs,Diesel,12/01/2017,201041,3764.2,Hall Fuels
Cultural & Related,Culture & Heritage,Community and Leisure ,Supplies & Services,Miscellaneous Expenses,Booking Of Acts,05/01/2017,200517,3786.25,Vienna Festival Ballet
Central Services to the Public,Management & Support Services,Environmental,Transport Related Expenditure,Direct Transport Costs,Diesel,12/01/2017,201261,3823.69,Hall Fuels
Environmental & Regulatory,Regulatory Services,Estates and Economic Development ,Supplies & Services,Miscellaneous Expenses,Security Services,12/01/2017,201453,3825,Dark Knight Security Ltd
Central Services to the Public,Management & Support Services,Legal & Democratic,Supplies & Services,Grants & Subscriptions,Subscriptions,12/01/2017,201356,3942.49,Thomson Reuters
Central Services to the Public,Management & Support Services,Environmental,Transport Related Expenditure,Direct Transport Costs,Diesel,26/01/2017,203084,3860.4,Hall Fuels
Environmental & Regulatory,Regulatory Services,Estates and Economic Development ,Third Party Payments,Other Establishments,Private Contractors,12/01/2017,201210,3870.75,Wetton Cleaning Services Ltd
Central Services to the Public,Management & Support Services,Environmental,Transport Related Expenditure,Direct Transport Costs,Diesel,19/01/2017,202376,3894,Hall Fuels
Cultural & Related,Open Spaces,Community and Leisure ,Premises related Expenditure,Repairs Alterations & Maintenance of Buildings,Estates premises costs - AMP,19/01/2017,202409,3900,Hrg Tree Services Ltd
Cultural & Related,Recreation & Sport,Community and Leisure ,Third Party Payments,Other Establishments,ALC Management Contract-TVL,05/01/2017,200526,3916.67,Valley Leisure Ltd
Central Services to the Public,Management & Support Services,IT,Supplies & Services,Communications & Computing,Hardware Maintenance,19/01/2017,202414,4039.36,Virgin Media Payments Ltd
Central Services to the Public,Management & Support Services,Estates and Economic Development ,Third Party Payments,Other Establishments,Private Contractors,05/01/2017,200905,4200,D Adams & Sons Roofing Ltd
Planning & Development,Development Control,Planning & Building,Employees,Indirect Employee Expenses,Temporary Staff,19/01/2017,201538,5130,Hampshire Planning Limited
Central Services to the Public,Management & Support Services,IT,Supplies & Services,Communications & Computing,Computer Hardware,12/01/2017,201457,312,Scalable Communications Plc
Central Services to the Public,Management & Support Services,IT,Supplies & Services,Communications & Computing,Hardware Maintenance,12/01/2017,201457,3986,Scalable Communications Plc
Central Services to the Public,Local Tax Collection,Revenues,Supplies & Services,Communications & Computing,Software Maintenance,12/01/2017,200966,880,Northgate Public Services Uk Ltd
Central Services to the Public,Local Tax Collection,Revenues,Supplies & Services,Communications & Computing,Software Maintenance,12/01/2017,200966,3520,Northgate Public Services Uk Ltd
Cultural & Related,Recreation & Sport,Community and Leisure ,Premises related Expenditure,Repairs Alterations & Maintenance of Buildings,Estates premises costs - AMP,12/01/2017,201456,4450,Vita Play Limited
External Trading Accounts,Business Parks,Estates and Economic Development ,Premises related Expenditure,Repairs Alterations & Maintenance of Buildings,Building Maint - Estates,12/01/2017,201286,4528,Floor Team Industrial Ltd
"Highways, Roads & Transport",Parking Services,Plan Pol & Transport,Supplies & Services,Services,Professional Fees,12/01/2017,201299,4891.49,Keyline Chartered Security Ltd
Cultural & Related,Recreation & Sport,Community and Leisure ,Supplies & Services,Services,Professional Fees,12/01/2017,201302,5000,Rpt Consulting Ltd
"Highways, Roads & Transport",Highways and roads - maintenance,Plan Pol & Transport,Premises related Expenditure,Repairs Alterations & Maintenance of Buildings,Highways Repairs,26/01/2017,203024,5000,Personal data - Data Protection Act 1998
Environmental & Regulatory,Regulatory Services,Housing and Environmental Health ,Supplies & Services,Grants and subscriptions,Capital Grants,19/01/2017,203044,6177.4,J D Codd Ltd
Environmental & Regulatory,Regulatory Services,Housing and Environmental Health ,Supplies & Services,Grants and subscriptions,Capital Grants,05/01/2017,201067,6839,Opemed (Europe) Ltd
Environmental & Regulatory,Waste management,Environmental,Supplies & Services,Miscellaneous Expenses,Recycling Bank Emptying,19/01/2017,200941,6578.39,Fcc Recycling (Uk) Ltd
"Highways, Roads & Transport",Parking Services,Plan Pol & Transport,Supplies & Services,Services,Professional Fees,12/01/2017,201256,8774.09,Friends Life Company Ltd
Central Services to the Public,Management & Support Services,Estates and Economic Development ,Third Party Payments,Private contractors,Main Contractor Costs,04/01/2017,195801,4050,Redlynch Leisure Installation Ltd
Cultural & Related,Recreation & Sport,Community and Leisure ,Premises related Expenditure,Repairs Alterations & Maintenance of Buildings,Estates premises costs - AMP,04/01/2017,195801,3295,Redlynch Leisure Installation Ltd
Planning & Development,Community Development,Community and Leisure ,Supplies & Services,Grants & Subscriptions,Grants,26/01/2017,204432,9176.5,Ampfield Parish Council
External Trading Accounts,Property Investments,Estates and Economic Development ,Third Party Payments,Private contractors,Main Contractor Costs,12/01/2017,201553,7654.85,Denton Ukmea Llp
Cultural & Related,Recreation & Sport,Community and Leisure ,Third Party Payments,Other Establishments,ALC Management Contract-TVL,05/01/2017,200387,8166.67,Valley Leisure Ltd
Environmental & Regulatory,Regulatory Services,Housing and Environmental Health ,Supplies & Services,Grants and subscriptions,Capital Grants,26/01/2017,204449,12000,Brian Loades Builders
Cultural & Related,Open Spaces,Community and Leisure ,Premises related Expenditure,Repairs Alterations & Maintenance of Buildings,Estates premises costs - AMP,12/01/2017,200196,10000,Hrg Tree Services Ltd
Cultural & Related,Recreation & Sport,Community and Leisure ,Supplies & Services,Services,Professional Fees,12/01/2017,201358,11241.7,Blake Morgan Llp
Cultural & Related,Culture & Heritage,Estates and Economic Development ,Premises related Expenditure,Repairs Alterations & Maintenance of Buildings,Estates premises costs - AMP,12/01/2017,201559,6660,Cs Storage Ltd
Central Services to the Public,Management & Support Services,Estates and Economic Development ,Premises related Expenditure,Repairs Alterations & Maintenance of Buildings,Estates premises costs - AMP,12/01/2017,201559,5550,Cs Storage Ltd
Environmental & Regulatory,Regulatory Services,Housing and Environmental Health ,Supplies & Services,Grants and subscriptions,Capital Grants,26/01/2017,204430,15874,Liftech Systems (Se) Ltd
Environmental & Regulatory,Community Development,Community and Leisure ,Employees,Indirect Employee Expenses,Temporary Staff,19/01/2017,203064,15978,Winchester City Council
Environmental & Regulatory,"Cemetery, Cremation and Mortuary Services",Community and Leisure ,Premises related Expenditure,Repairs Alterations & Maintenance of Buildings,Estates premises costs - AMP,12/01/2017,201291,14067,D Adams & Sons Roofing Ltd
Central Services to the Public,Management & Support Services,Plan Pol & Transport,Premises related Expenditure,Repairs Alterations & Maintenance of Buildings,General Repairs,26/01/2017,203021,15687.36,Caroway Building & Civil Engineering
Central Services to the Public,Management & Support Services,Legal & Democratic,Supplies & Services,Communications & Computing,Computer Software,26/01/2017,202861,18406,Iken Business Ltd
Cultural & Related,Recreation & Sport,Community and Leisure ,Premises related Expenditure,Grounds Maintenance Costs,Non Contract Tree Works,12/01/2017,200161,780.33,Gristwood & Toms Ltd
Cultural & Related,Open Spaces,Community and Leisure ,Premises related Expenditure,Grounds Maintenance Costs,Non Contract Tree Works,12/01/2017,200161,2291.51,Gristwood & Toms Ltd
Cultural & Related,Open Spaces,Community and Leisure ,Premises related Expenditure,Grounds Maintenance Costs,Non Contract Tree Works,12/01/2017,200161,3920.05,Gristwood & Toms Ltd
Cultural & Related,Open Spaces,Community and Leisure ,Premises related Expenditure,Grounds Maintenance Costs,Non Contract Tree Works,12/01/2017,200161,24104.7,Gristwood & Toms Ltd
"Highways, Roads & Transport",Parking Services,Plan Pol & Transport,Premises related Expenditure,Grounds Maintenance Costs,Non Contract Tree Works,12/01/2017,200161,1018.3,Gristwood & Toms Ltd
External Trading Accounts,Property Investments,Estates and Economic Development ,Third Party Payments,Private contractors,Main Contractor Costs,05/01/2017,200909,48450,Safespec Building Services Ltd
External Trading Accounts,Business Parks,Estates and Economic Development ,Supplies & Services,Services,Professional Fees,05/01/2017,200797,40920.55,Kier Ventures Ltd
Planning & Development,Community Development,Community and Leisure ,Supplies & Services,Grants & Subscriptions,Grants,12/01/2017,201547,55064.25,Test Valley Cab
Central Services to the Public,Management & Support Services,IT,Support Services,IT,IT Hardware costs,05/01/2017,201051,49999.98,Capita It Services Ltd
Central Services to the Public,Management & Support Services,Environmental,Transport Related Expenditure,Direct Transport Costs,Vehicles and Plant,26/01/2017,201464,54845,King Feeders Uk
